Cogmind - Beta 16 @@@ ROGUE MODE // 2025.11.23 @ 15:07:56 // Winter2019/RPGLIKE Player: Torako Result: Destroyed by H-55 Commando with Gauss Rifle Performance ------------- Evolutions (2) 1000 Regions Visited (4) 800 Robots Destroyed (33) 165 Value Destroyed (995) 995 Prototype IDs (18) 360 Alien Tech Used (0) 0 Bonus (183) 183 TOTAL SCORE: 3503 Bonus ------- Follower Combat Kills 183 Cogmind --------- Core Integrity 0/600 Matter 300/300 Energy 265/265 System Corruption 0% Temperature Cool (1) Movement Walking (190) Ox1 Location -8/Materials Parts ------- > --- POWER (1+1) ------ Improved Ion Engine > --- PROPULSION (2+2) - Aluminum Leg Aluminum Leg > --- UTILITY (3+2) ---- Structural Scanner Tower Shield > --- WEAPON (1+2) ----- Light Assault Rifle > --- INVENTORY (3) ---- EMP Blaster Peak State ------------ > --- POWER ------------ Improved Ion Engine > --- PROPULSION ------- Aluminum Leg Aluminum Leg > --- UTILITY ---------- Structural Scanner Tower Shield > --- WEAPON ----------- Light Assault Rifle > --- INVENTORY -------- EMP Blaster [Rating: 26] Favorites ----------- Power Light Ion Engine Engine Light Ion Engine Propulsion Flight Unit Leg Aluminum Leg Wheel Subdweller Monowheel Hover Unit Hover Unit Flight Unit Flight Unit Utility Structural Scanner Device Structural Scanner Protection Propulsion Shielding Weapon Medium Laser Energy Gun Medium Laser Energy Cannon Subdweller Beam Cannon Ballistic Gun Subdweller Machine Gun Build | -11 -10 -10 -10 -8 ------- Run | Yrd Mat Min Sub Mat Slots Evolved 3 | . 1 . . 2 Power . | . . . . . Propulsion 1 | . 1 . . . Utility 2 | . . . . 2 Weapon . | . . . . . Parts Attached 23 | 4 4 . 6 9 Power 5 | 1 . . 3 1 Engine 5 | 1 . . 3 1 Core . | . . . . . Reactor . | . . . . . Propulsion 7 | 1 3 . 1 2 Treads . | . . . . . Leg 3 | 1 . . . 2 Wheel 1 | . . . 1 . Hover 2 | . 2 . . . Flight 1 | . 1 . . . Utility 6 | 1 1 . . 4 Device 2 | 1 1 . . . Storage . | . . . . . Processor . | . . . . . Hackware . | . . . . . Protection 4 | . . . . 4 Artifact . | . . . . . Weapon 5 | 1 . . 2 2 Energy Gun 1 | 1 . . . . Energy Cannon 2 | . . . 1 1 Ballistic Gun 2 | . . . 1 1 Ballistic Cannon . | . . . . . Launcher . | . . . . . Special Weapon . | . . . . . Impact Weapon . | . . . . . Slashing Weapon . | . . . . . Piercing Weapon . | . . . . . Special Melee Weapon . | . . . . . Unidentified Prototypes . | . . . . . Parts Lost 3 | . . . . 3 Power . | . . . . . Propulsion 1 | . . . . 1 Utility 2 | . . . . 2 Weapon . | . . . . . Highest Loss Streak 2 | . . . . 2 To Critical Strikes . | . . . . . Average Backups 1 | . . . 1 1 Power . | . . . . . Propulsion . | . . . . . Utility . | . . . 1 1 Weapon . | . . . . . Tool/Special . | . . . . . Unused Backups 4 | . . . 2 2 Power . | . . . . . Propulsion . | . . . . . Utility 2 | . . . 1 1 Weapon 2 | . . . 1 1 Tool/Special . | . . . . . Average Slot Usage (%) 96 | . 99 100 97 83 Engine 19 | . 23 20 19 12 Leg 2 | . 8 . . 5 Wheel 6 | . . . 16 2 Hover 11 | . 19 20 3 . Flight 14 | . . 20 20 10 Device 20 | . 23 20 20 14 Protection 2 | . . . . 21 Energy Gun 11 | . 23 20 1 . Energy Cannon 2 | . . . 4 8 Ballistic Gun 5 | . . . 12 5 Peak Build Rating 26 | 4 5 5 10 26 Average Rating 7 | 2 4 5 9 11 On Entrance 4 | . 4 5 5 10 Avg Prop Armor Cover (%) 9 | 15 12 10 8 4 Naked Turns . | . . . . . Heaviest Build 15 | 6 6 6 14 15 Greatest Support 30 | 13 22 14 14 30 Greatest Overweight (x) 1 | . . . . 1 Average Overweight (x) . | . . . . . Largest Inventory Capacity 3 | 1 1 1 3 3 Average Capacity 1 | 1 1 1 2 3 Most Carried 3 | . 1 1 3 3 Average Carried 1 | . . . 2 2 Final Capacity 3 | 1 1 1 3 3 Final Carried 3 | . 1 1 3 1 Class Distribution -------------------- 82% | Mutant 17% | Scavenger-Mutant Dominant Class ---------------- Mutant | -10/Materials Mutant | -10/Mines Mutant | -10/Subcaves Mutant | -8/Materials Resources | -11 -10 -10 -10 -8 ----------- Run | Yrd Mat Min Sub Mat Matter Collected 598 | 240 50 . 128 180 Remotely . | . . . . . Salvage Created 1076 | 112 359 126 186 293 Parts 54 | 5 19 1 4 25 Haulers Intercepted 1 | . 1 . . . Recyclers Shooed 1 | 1 . . . . Parts Field Recycled . | . . . . . Retrieved Matter . | . . . . . Parts Self-Destructed 7 | . . . 7 . Prevented . | . . . . . Parts Restored . | . . . . . Kills | -11 -10 -10 -10 -8 ------- Run | Yrd Mat Min Sub Mat Combat Hostiles Destroyed 27 | . 13 2 2 10 Guns 17 | . 11 1 1 4 Cannons 7 | . . . 1 6 Classes Destroyed 10 | 2 4 . 3 1 Tunneler 2 | 2 . . . . Hauler 1 | . 1 . . . Recycler 1 | 1 . . . . Watcher 2 | . 2 . . . Swarmer 5 | . 2 . . 3 Grunt 18 | . 11 2 1 4 Sentry 3 | . . . . 3 Artisan 1 | . . . 1 . Cobbler 1 | . . . 1 . Subdweller 1 | . . . 1 . Best Kill Streak 6 | 2 4 6 1 2 Combat Bots Only 3 | . 3 2 1 2 Max Kills in Single Turn 1 | 1 1 1 1 1 Gunslinging . | . . . . . Exploded . | . . . . . Melee . | . . . . . Uniques/NPCs Destroyed . | . . . . . Combat | -11 -10 -10 -10 -8 -------- Run | Yrd Mat Min Sub Mat Hostile Shots Fired 226 | . 73 15 12 126 Missed 59 | . 21 3 6 29 Hits 167 | . 52 12 6 97 Projectile 167 | . 52 12 6 97 Critical Strikes 6 | . . 1 . 5 Actively Blocked 1 | . . . . 1 Damage Taken 2095 | . 565 158 186 1186 Core 1495 | . 483 134 157 721 Absorbed by Shields . | . . . . . Redirected to Core 986 | . 266 78 93 549 Redirected to Shielding 52 | . . . . 52 Ignored by Resistances 230 | . 18 23 15 174 Core Remaining (%) 86 | 100 . . 73 . Volleys Fired 244 | 12 105 13 46 68 Largest 1 | 1 1 1 1 1 Hottest 80 | 50 50 50 80 60 Shots Fired 243 | 12 105 13 45 68 Gun 203 | 12 105 13 31 42 Cannon 40 | . . . 14 26 Launcher . | . . . . . Special . | . . . . . Kinetic 71 | . . . 29 42 Thermal 172 | 12 105 13 16 26 Explosive . | . . . . . Electromagnetic . | . . . . . Robot Hit Streak 16 | 4 8 13 4 16 Robot Miss Streak 3 | 3 3 1 2 3 Penetration Max . | . . . . . Secondary Targets . | . . . . . Shots Hit Robots 167 | 7 75 11 16 58 Core Hits 70 | 4 28 4 8 26 Critical Kills . | . . . . . Critical Parts Destroyed . | . . . . . Critical Strikes 8 | 1 6 1 . . Burn 8 | 1 6 1 . . Melee Attacks . | . . . . . Impact . | . . . . . Slashing . | . . . . . Piercing . | . . . . . Sneak Attacks . | . . . . . Combat Hostiles . | . . . . . Follow-up Attacks . | . . . . . Damage Inflicted 2204 | 87 966 136 348 667 Guns 1707 | 87 966 136 242 276 Cannons 497 | . . . 106 391 Explosions . | . . . . . Melee . | . . . . . Ramming . | . . . . . Kinetic 518 | . . . 242 276 Thermal 1686 | 87 966 136 106 391 Explosive . | . . . . . Electromagnetic . | . . . . . Impact . | . . . . . Slashing . | . . . . . Piercing . | . . . . . Highest Corruption . | . . . . . Average Corruption . | . . . . . Corruption Purged . | . . . . . Corruption Blocked . | . . . . . Overload Shots . | . . . . . Overflow Damage . | . . . . . Projectiles . | . . . . . Explosions . | . . . . . Melee . | . . . . . Knockbacks . | . . . . . Impact . | . . . . . Kinetic . | . . . . . Secondary . | . . . . . Self-Inflicted Damage . | . . . . . Shots . | . . . . . Rammed . | . . . . . Targets Rammed . | . . . . . Kicked . | . . . . . Crushed . | . . . . . Highest Temperature 485 | 70 210 279 18 485 Average Temperature 107 | 35 63 143 10 178 Received Heat Transfer 810 | . 273 123 36 378 Effects 11 | . . 1 . 10 Shutdowns 3 | . . . . 3 Energy Bleed 2 | . . 1 . 1 Interference 4 | . . . . 4 Matter Decay 1 | . . . . 1 Short Circuit 1 | . . . . 1 Siege Activations . | . . . . . Martial Activations . | . . . . . Shielding Activations . | . . . . . Robots Disrupted . | . . . . . Combat Hostiles . | . . . . . Robots Corrupted . | . . . . . Combat Hostiles . | . . . . . Parts Fried . | . . . . . Impact Corruptions . | . . . . . Robots Melted 3 | . 2 1 . . Combat Hostiles 3 | . 2 1 . . Parts Melted 11 | 1 8 . . 2 Heat Transferred 5069 | 333 3293 481 148 814 Parts Sabotaged . | . . . . . Parts Stolen . | . . . . . Parts Stripped . | . . . . . Power Chain Reactions . | . . . . . Alert | -11 -10 -10 -10 -8 ------- Run | Yrd Mat Min Sub Mat Maximum Alert Level 1 | . 1 . . . Low Security (%) 99 | 100 98 100 . 100 Level 1 . | . 1 . . . Level 2 . | . . . . . Level 3 . | . . . . . Level 4 . | . . . . . Level 5 . | . . . . . High Security . | . . . . . Max Security . | . . . . . Peak Influence 223 | 10 223 95 . 121 Initial 55 | . . 55 . 15 Average 42 | 1 70 14 . 70 Influence Increases 1012 | 15 604 50 87 256 Destroy 0b10 Robot/C 540 | . 260 40 40 200 Destroy 0b10 Robot/NC 30 | 15 15 . . . Destroy Leader 136 | . 76 10 10 40 Allied During Kill 7 | . . . 7 . Trap Triggered on 0b10 10 | . 10 . . . Successful Hack 49 | . 33 . . 16 Select Force Hacks 30 | . 30 . . . Partial Spotted 15 | . 15 . . . Lose Combat Pursuer 195 | . 165 . 30 . Influence Decreases 921 | 15 461 193 57 195 Entered New Map 103 | . . 88 . 15 Time Decay 565 | 15 238 105 57 150 Lost Part 30 | . . . . 30 Purge Threat 223 | . 223 . . . Squads Dispatched 6 | . 5 1 . . Investigation 2 | . 2 . . . Extermination . | . . . . . Reinforcement 3 | . 3 . . . Assault 1 | . . 1 . . Garrison . | . . . . . Intercept . | . . . . . Searches Triggered . | . . . . . Construction Impeded . | . . . . . Haulers Reinforced . | . . . . . Active Scanning Responses . | . . . . . Cargo Convoy Interrupts . | . . . . . Stealth | -11 -10 -10 -10 -8 --------- Run | Yrd Mat Min Sub Mat Distress Signals 1 | . 1 . . . Communications Jammed . | . . . . . Distress Signals . | . . . . . Times Spotted 57 | . 30 2 12 13 Peak Tracking Total 6 | . 5 2 3 6 Tactical Retreats 9 | . 8 . 1 . Traps | -11 -10 -10 -10 -8 ------- Run | Yrd Mat Min Sub Mat Traps Triggered 4 | . 2 . 2 . Indirectly . | . . . . . Trap Hack Attempts . | . . . . . Triggered . | . . . . . Disarmed . | . . . . . Reprogrammed 1 | . 1 . . . Reused 1 | . 1 . . . Traps Extracted . | . . . . . Installed . | . . . . . Triggered 1 | . 1 . . . Machines | -11 -10 -10 -10 -8 ---------- Run | Yrd Mat Min Sub Mat Machines Disabled 1 | . . . 1 . Max in Single Turn 1 | . . . 1 . Machines Repaired . | . . . . . Machines Dismantled . | . . . . . Machines Sabotaged . | . . . . . Overloaded Fab Kills . | . . . . . Hacking | -11 -10 -10 -10 -8 --------- Run | Yrd Mat Min Sub Mat Machines Accessed 11 | . 7 . 2 2 Terminals 8 | . 6 . . 2 Fabricators . | . . . . . Repair Stations . | . . . . . Recycling Units 1 | . 1 . . . Scanalyzers . | . . . . . Garrison Access . | . . . . . Total Hacks 45 | . 30 . 4 11 Successful 24 | . 14 . 4 6 Failed 20 | . 16 . . 4 Catastrophic 1 | . 1 . . . Database Lockouts 1 | . . . . 1 Manual 16 | . 8 . 1 7 Terminals 39 | . 28 . . 11 Fabricators . | . . . . . Repair Stations . | . . . . . Recycling Units 2 | . 2 . . . Scanalyzers . | . . . . . Garrison Access . | . . . . . Terminal Hacks 19 | . 10 . 4 5 Record 4 | . 1 . 3 . Robot Analysis 1 | . . . . 1 Prototype ID Bank 3 | . 1 . . 2 Branch Access Points 2 | . 1 . . 1 Terminal Index 2 | . 1 . . 1 Unreport Threat 2 | . 2 . . . Reprogram Traps 1 | . 1 . . . Transport Status 1 | . 1 . . . Hauler Manifests 1 | . 1 . . . Registered Components 1 | . 1 . . . Proto ID Catalog 1 | . . . 1 . Fabricator Hacks . | . . . . . Repair Station Hacks . | . . . . . Recycling Unit Hacks 1 | . 1 . . . Report Inventory 1 | . 1 . . . Scanalyzer . | . . . . . Garrison Access Hacks . | . . . . . Unauthorized Hacks 4 | . 3 . . 1 Terminals 3 | . 2 . . 1 Botnet 1 | . 1 . . . Disrupt 2 | . 1 . . 1 Fabricators . | . . . . . Repair Stations . | . . . . . Recycling Units 1 | . 1 . . . Tunnel 1 | . 1 . . . Scanalyzers . | . . . . . Garrison Access . | . . . . . Data Cores Recovered . | . . . . . Used . | . . . . . Hacking Detections 7 | . 5 . . 2 Full Trace Events . | . . . . . Feedback Events . | . . . . . Feedback Blocked . | . . . . . Robot Schematics Acquired . | . . . . . Robots Built . | . . . . . Authchips . | . . . . . Time . | . . . . . Total Robot Build Rating . | . . . . . Part Schematics Acquired . | . . . . . Parts Built . | . . . . . Authchips . | . . . . . Time . | . . . . . Total Part Build Rating . | . . . . . Part Studies Acquired . | . . . . . Parts Repaired . | . . . . . Time . | . . . . . Parts Recycled . | . . . . . Recycled Matter . | . . . . . Retrieved Matter . | . . . . . Retrieved Components . | . . . . . Parts Scanalyzed . | . . . . . Part Schematics Acquired . | . . . . . Parts Damaged . | . . . . . Bothacking | -11 -10 -10 -10 -8 ------------ Run | Yrd Mat Min Sub Mat Used RIF Installer . | . . . . . Robots Hacked . | . . . . . Non-combat . | . . . . . Combat . | . . . . . Robot Hacks Applied . | . . . . . Relay Couplers Released . | . . . . . Fabnet Peak Effective % . | . . . . . Robots Rewired . | . . . . . Allies Hacked . | . . . . . Hacks Repelled . | . . . . . Allies | -11 -10 -10 -10 -8 -------- Run | Yrd Mat Min Sub Mat Total Allies 4 | . . 4 . . Largest Group 4 | . . 4 4 . Highest-Rated Group 71 | . . 71 71 . Highest-Rated Ally 31 | . . 31 31 . Total Orders . | . . . . . Ally Attacks 61 | . . . 61 . Total Damage 783 | . . . 783 . Kills 6 | . . . 6 . Allies Corrupted . | . . . . . Allies Melted . | . . . . . Intel | -11 -10 -10 -10 -8 ------- Run | Yrd Mat Min Sub Mat Active Infowar (turns) 2541 | 3 582 772 976 208 Structural 2520 | . 564 772 976 208 Seismic 21 | 3 18 . . . Robot Analysis Total 1 | . . . . 1 Derelict Logs Recovered . | . . . . . Drone Launches . | . . . . . Drone Recoveries . | . . . . . Exploration | -11 -10 -10 -10 -8 ------------- Run | Yrd Mat Min Sub Mat Turns Passed 2696 | 63 582 772 976 303 Spaces Moved 2958 | 65 443 503 1777 170 Core 442 | 65 308 . . 69 Treads . | . . . . . Legs 10 | . . . . 10 Wheels . | . . . . . Hover 93 | . 93 . . . Flight 2413 | . 42 503 1777 91 Fastest Speed 40 | 50 40 40 40 40 Average Speed 45 | 50 50 40 44 69 Slowest Speed 120 | 50 56 40 45 120 Overloaded Moves . | . . . . . Propulsion Burnouts . | . . . . . Robots Hopped 6 | . 1 3 2 . Potential Cave-ins . | . . . . . Cave-ins Triggered . | . . . . . Exploration Rate (%) 44 | 4 64 69 68 17 Regions Visited 4 Branch Regions 2 Pre-discovered Areas 2 | . 1 . 1 . Known Exits Taken 1 | . 1 . . . Unknown Exits Taken 3 | 1 . 1 1 . Scrap Searched 1 | . . 1 . . Spaces Dug 4 | . . . 4 . Terrain Destroyed 5 | . . . 5 . Melee . | . . . . . Projectile 5 | . . . 5 . AOE . | . . . . . Terrain Rammed . | . . . . . Walls Destroyed . | . . . . . Machines Disabled . | . . . . . Actions | -11 -10 -10 -10 -8 --------- Run | Yrd Mat Min Sub Mat Total 4045 | 80 695 1057 1917 296 Wait 754 | . 114 537 73 30 Move 2942 | 64 440 496 1772 170 Hop 6 | . 1 3 2 . Pick Up 7 | . 1 1 4 1 Fast Attach 23 | 4 5 . 7 7 Attach 1 | . . . . 1 Detach 1 | . 1 . . . Swap 1 | . . . . 1 Drop 20 | . 3 1 10 6 Fire 244 | 12 105 13 46 68 Melee . | . . . . . Ram . | . . . . . Kick . | . . . . . Crush . | . . . . . Escape Stasis . | . . . . . Rewire . | . . . . . Trap . | . . . . . Miscellaneous 46 | . 25 6 3 12 Route ------- -11/Scrapyard -10/Materials (discovered 5 exits: [*Mat x3] / *Min / *Sub) -10/Mines (discovered 3 exits: [*Mat x2] / *Sub) -10/Subcaves -8/Materials History --------- Turn | Location | Event 4 | -11/Scrapyard | Discovered new exit (range 16) 64 | -11/Scrapyard | Entered Materials 94 | -10/Materials | Identified exit to Mines 115 | -10/Materials | Discovered new exit (range 16) 300 | -10/Materials | Build established: Mutant 398 | -10/Materials | Discovered new exit (range 16) 510 | -10/Materials | Reached level 2 518 | -10/Materials | Upgraded with Propulsion slot (x1) 561 | -10/Materials | Discovered new exit (range 16) 634 | -10/Materials | Discovered new exit (range 9) 646 | -10/Materials | Entered Mines 647 | -10/Mines | Assembled infested the area 704 | -10/Mines | Discovered new exit (range 7) 1206 | -10/Mines | Assisted by bots powering up and referring to "LRC-V3" 1349 | -10/Mines | Discovered new exit (range 10) 1370 | -10/Mines | Met a Derelict testing a Signal Generator 1371 | -10/Mines | Discovered new exit (range 10) 1418 | -10/Mines | Entered Subcaves 1418 | -10/Subcaves | Accompanied by 4 allies 1420 | -10/Subcaves | Reached level 3 1434 | -10/Subcaves | Ambushed by Subdwellers from Twisted Machinery 1497 | -10/Subcaves | Visited 4L-MR0's lab 1504 | -10/Subcaves | Found Tower Shield 1729 | -10/Subcaves | Learned location of Zion (-6) 1729 | -10/Subcaves | Met a Zionite searching for "candidates" 2359 | -10/Subcaves | Discovered new exit (range 8) 2363 | -10/Subcaves | Visited Clippyterm 2364 | -10/Subcaves | Learned Factory trap positions 2394 | -10/Subcaves | Entered Materials 2396 | -8/Materials | Reached level 4 2405 | -8/Materials | Central database locked down 2439 | -8/Materials | Upgraded with Utility slot (x2) 2521 | -8/Materials | Reached level 5 2580 | -8/Materials | Core integrity fell below 50% 2674 | -8/Materials | Core integrity fell below 20% 2675 | -8/Materials | Attached Tower Shield, gained temporary slots: Power, Propulsion x2, Utility x2, Weapon x2 2697 | -8/Materials | Destroyed by H-55 Commando with Gauss Rifle Last Messages --------------- Core temporarily expanded with Power slot. Core temporarily expanded with Propulsion slot. Core temporarily expanded with Utility slot. Core temporarily expanded with Weapon slot. Acquired 1 matter. R-06 Scavenger collects Aluminum Leg. Acquired 1 matter. Penetrated by Slug. Acquired 1 matter. Penetrated by Slug. G-47 Trooper destroyed. Acquired 1 matter. K-01 Serf collects debris. Penetrated by Slug. Acquired 1 matter. K-01 Serf collects debris. Acquired 1 matter. K-01 Serf collects debris. U-05 Engineer builds a Door. Penetrated by Slug. Map ----- +----------------------------------------------------+ | #########?####### ! #######[ """""[## | | # ########## ####### ==% [# | | # ##### ##+####### ##+######## | | + T ###### | | # T=== [= ###### | | # [ ##### # ##+######## | | # [ *!######+### ##% ## | | ### #####? # ## %## | | ### ##### # ## """ ## | | ###+##?## # ## """"" ## | | ##?## # """ /[""""" ## | | """ ##?########## """ ####+### """" ## | | """ ##?########## """ # # """ ## | | """ ##?????????## / # ## | | ##????????### # # ## | | ##????????### """ # # ! ## | | ##????????""" """w # # ## | | ##?????????T """ # #####+#### | | ######?????????"" #+##########%#### | | ######?????????## k ##########+###? | | ???????????????## ### !% ##? | | ????????? ???#### |! ### ] ##? | | ????????? ### [! ###! ##? | | ???????? [! u# ##? | | ???????? h! u + ##? | | ???????? %a%@ # """"" ##? | | ????????????? ##########m#### """"" ##? | | ?????????????########## ![*## """"" ##? | | ?????????????????????## ![ #############? | | ?????????????????????## #############? | | ?????????????????????## ##???????????? | | ????????????????????? # ##???????????? | | ????????????????????? # *##???????????? | | ????????????????????? # ##???????????? | | ????????????????????? # ##???????????? | | ????????????????????? # ! ##???????????? | | ????????????????????? #######???????????? | | ????????????????????? #######???????????? | | ????????????????????????????????????????? | | ????????????????????????????????????????? | | ????????????????????????????????????????? | | ????????????????????????????????????????? | | ????????????????????????????????????????? | | ????????????????????????????????????????? | | ????????????????????????????????????????? | | ????????????????????????????????????????? | | ????????????????????????????????????????? | | ????????????????????????????????????????? | | ????????????????????????????????????????? | | ????????????????????????????????????????? | +----------------------------------------------------+ Best States ------------- Heat Dissipation 25 Energy Generation 15 Energy Capacity 265 Matter Stores 300 Matter Capacity 300 Sight Range 16 Robot Scan Range 20 Terrain Scan Density 10 Armor Coverage 2000 Resistance: KI 10 Resistance: TH 10 Resistance: EM 15 Propulsion Shielding 33 Evasion (%) 62 Offensive Hacking 5 Defensive Hacking 5 Item Schematics ----------------- None Robot Schematics ------------------ None Fabricated ------------ Nothing Repaired ---------- Nothing Studied --------- None Alien Tech Used ----------------- None Achievements -------------- Art Critic Mistaken Identity Organ Harvest That Tickles Challenges ------------ None RPGLIKE | -11 -10 -10 -10 -8 --------- Run | Yrd Mat Min Sub Mat Levels Raised 4 | . 1 . 1 2 XP Earned 9821 | 3000 1970 750 1341 2760 XP Spent 7025 | 2975 1500 . 1250 1300 Upgrades 24 | 15 5 . 2 2 Propulsion Slot 1 | . 1 . . . Utility Slot 2 | . . . . 2 Mass Support 2 | 2 . . . . Inventory Capacity 3 | 1 . . 2 . Sensor Range 10 | 10 . . . . Hack Attack % 1 | 1 . . . . Hack Defense % 1 | 1 . . . . KI Resistance % 2 | . 2 . . . TH Resistance % 2 | . 2 . . . Protomatter Created 388 | . 246 . . 142 Integrity Restored 951 | . 465 144 69 273 Core 889 | . 403 144 69 273 Parts 62 | . 62 . . . Protomatter Decayed 78 | . 69 . . 9 Game ------ Seed CannonStorageWand Manual? 0 Play Time 00:35:50 Cumulative 355.0 hours Start 2025.11.23 @ 14:29:53 End 2025.11.23 @ 15:07:56 Sessions 1 Manual Loads 0 Difficulty Rogue Special Mode Winter2019/RPGLIKE Game No. 349 Rogue 349 Adventurer 0 Explorer 0 Win Type - Total 25 Types 19/0/4/2/0/0/0/0/0/0 Lore% 68 Gallery% 75 Achievement% 44 Wizard Run 0 Options --------- Layout 0 ASCII 0 Keyboard 1 Movement Numpad Keybinds 0 Fullscreen 1 Font 18/SmallcapsGlow Map View 76x50 Zoom Use 0% Tactical HUD 1 Map Filters NONE Filters NONE Steam 1 RUN: 1c100b42-0239-4060-ad77-77ec5a0af36e